fUSD/lending_fUSD_20240802
["ID","MTS","AMOUNT","RATE_DAILY","PERIOD"]
[333910740,1722624656156,-2078.66,0.00016438,2]
[333910742,1722624656165,-500.0,0.00016438,2]
[333910744,1722624656175,-500.0,0.00016438,2]
[333910746,1722624656184,-151.0,0.00016438,2]
[333910748,1722624656194,-214.86911693,0.00016438,2]
[333910750,1722624656203,-574.64,0.00016438,2]
[333910752,1722624656213,-500.0,0.00016438,2]
[333910754,1722624656223,-1797.68,0.00016438,2]
[333910756,1722624656232,-500.0,0.00016438,2]
[333910758,1722624656242,-500.0,0.00016438,2]
[333910760,1722624656253,-840.88,0.00016438,2]
[333910762,1722624656262,-1081.05,0.00016438,2]
[333910764,1722624656272,-709.99,0.00016438,2]
[333910766,1722624656282,-7026.59,0.00016438,2]
[333910768,1722624656292,-852.01,0.00016438,2]
[333910771,1722624656302,-3046.82,0.00016438,2]
[333910772,1722624656312,-4036.71,0.00016438,2]
[333910774,1722624656322,-500.0,0.00016438,2]
[333910777,1722624656333,-500.0,0.00016438,2]
[333910779,1722624656343,-1734.76,0.00016438,2]
[333910781,1722624656356,-500.0,0.00016438,2]
[333910783,1722624656366,-2311.94,0.00016438,2]
[333910785,1722624656375,-10150.97,0.00016438,2]
[333910787,1722624656385,-500.0,0.00016438,2]
[333910789,1722624656396,-531.59,0.00016438,2]
[333910791,1722624656406,-500.0,0.00016438,2]
[333910793,1722624656416,-500.0,0.00016438,2]
[333910795,1722624656427,-1457.21,0.00016438,2]
[333910797,1722624656437,-3863.29,0.00016438,2]
[333910799,1722624656447,-11910.89,0.00016438,2]
[333910801,1722624656457,-8516.13,0.00016438,2]
[333910803,1722624656467,-500.0,0.00016438,2]
[333910805,1722624656477,-500.0,0.00016438,2]
[333910807,1722624656487,-151.0,0.00016438,2]
[333910810,1722624656498,-949.93,0.00016438,2]
[333910812,1722624656508,-151.0,0.00016438,2]
[333910814,1722624656518,-2282.56,0.00016438,2]
[333910816,1722624656527,-151.0,0.00016438,2]
[333910818,1722624656537,-3082.68,0.00016438,2]
[333910820,1722624656547,-500.0,0.00016438,2]
[333910822,1722624656557,-151.0,0.00016438,2]
[333910824,1722624656567,-2123.28,0.00016438,2]
[333910826,1722624656577,-151.0,0.00016438,2]
[333910828,1722624656587,-151.0,0.00016438,2]
[333910830,1722624656597,-151.0,0.00016438,2]
[333910832,1722624656606,-500.0,0.00016438,2]
[333910834,1722624656616,-151.0,0.00016438,2]
[333910836,1722624656626,-1165.8,0.00016438,2]
[333910838,1722624656636,-1248.92,0.00016438,2]
[333910840,1722624656646,-151.0,0.00016438,2]
[333910842,1722624656655,-151.0,0.00016438,2]
[333910844,1722624656665,-1082.19,0.00016438,2]
[333910846,1722624656675,-151.0,0.00016438,2]
[333910848,1722624656685,-1759.38,0.00016438,2]
[333910850,1722624656695,-3785.84,0.00016438,2]
[333910852,1722624656704,-151.0,0.00016438,2]
[333910854,1722624656715,-500.0,0.00016438,2]
[333910856,1722624656725,-4928.71,0.00016438,2]
[333910858,1722624656735,-151.0,0.00016438,2]
[333910860,1722624656744,-2428.1,0.00016438,2]
[333910863,1722624656754,-151.0,0.00016438,2]
[333910865,1722624656764,-151.0,0.00016438,2]
[333910867,1722624656774,-235.183922,0.00016438,2]
[333910869,1722624656783,-500.0,0.00016438,2]
[333910871,1722624656793,-605.78,0.00016438,2]
[333910873,1722624656803,-500.0,0.00016438,2]
[333910875,1722624656813,-5883.95,0.00016438,2]
[333910877,1722624656823,-500.0,0.00016438,2]
[333910879,1722624656832,-3086.93,0.00016438,2]
[333910881,1722624656843,-500.0,0.00016438,2]
[333910883,1722624656853,-500.0,0.00016438,2]
[333910885,1722624656863,-2483.48,0.00016438,2]
[333910887,1722624656874,-1651.67,0.00016438,2]
[333910889,1722624656885,-1405.17,0.00016438,2]
[333910891,1722624656895,-500.0,0.00016438,2]
[333910893,1722624656904,-936.24,0.00016438,2]
[333910895,1722624656915,-1856.11,0.00016438,2]
[333910896,1722624656924,-10507.96,0.00016438,2]
[333910898,1722624656934,-4092.25,0.00016438,2]
[333910900,1722624656944,-5735.29,0.00016438,2]
[333910902,1722624656953,-500.0,0.00016438,2]
[333910904,1722624656963,-1037.45,0.00016438,2]
[333910906,1722624656973,-32085.04,0.00016438,2]
[333910908,1722624656983,-5755.38,0.00016438,2]
[333910910,1722624656992,-4592.54,0.00016438,2]
[333910912,1722624657002,-1045.26,0.00016438,2]
[333910914,1722624657012,-6002.71,0.00016438,2]
[333910916,1722624657021,-4712.88,0.00016438,2]
[333910918,1722624657031,-6983.07,0.00016438,2]
[333910919,1722624657040,-1494.79,0.00016438,2]
[333910920,1722624657050,-3265.45,0.00016438,2]
[333910921,1722624657059,-500.0,0.00016438,2]
[333910922,1722624657068,-500.0,0.00016438,2]
[333910923,1722624657077,-1892.91,0.00016438,2]
[333910924,1722624657087,-1499.53,0.00016438,2]
[333910925,1722624657096,-1758.02,0.00016438,2]
[333910926,1722624657106,-2283.89,0.00016438,2]
[333910928,1722624657115,-500.0,0.00016438,2]
[333910930,1722624657125,-500.0,0.00016438,2]
[333910932,1722624657134,-1068.91,0.00016438,2]
[333910934,1722624657144,-2871.21,0.00016438,2]
[333910936,1722624657153,-1433.79,0.00016438,2]
[333910938,1722624657162,-500.0,0.00016438,2]
[333910940,1722624657172,-2553.74,0.00016438,2]
[333910942,1722624657182,-511.35,0.00016438,2]
[333910944,1722624657191,-6857.84,0.00016438,2]
[333910946,1722624657200,-6456.07,0.00016438,2]
[333910952,1722624657346,-1349.97,0.00016438,2]
[333910953,1722624657356,-500.0,0.00016438,2]
[333910954,1722624657366,-3715.5,0.00016438,2]
[333910955,1722624657376,-566.83,0.00016438,2]
[333910956,1722624657385,-1556.52,0.00016438,2]
[333910957,1722624657394,-3903.39,0.00016438,2]
[333910958,1722624657404,-646.61,0.00016438,2]
[333910959,1722624657414,-500.0,0.00016438,2]
[333910960,1722624657424,-3037.74,0.00016438,2]
[333910961,1722624657435,-6436.47,0.00016438,2]
[333910962,1722624657445,-2848.96,0.00016438,2]
[333910963,1722624657457,-151.0,0.00016438,2]
[333910964,1722624657467,-858.31,0.00016438,2]
[333910965,1722624657477,-500.0,0.00016438,2]
[333910966,1722624657486,-500.0,0.00016438,2]
[333910967,1722624657495,-500.0,0.00016438,2]
[333910968,1722624657505,-2801.0,0.00016438,2]
[333910969,1722624657514,-3820.19,0.00016438,2]
[333910970,1722624657524,-500.0,0.00016438,2]
[333910971,1722624657533,-789.64,0.00016438,2]
[333910972,1722624657542,-500.0,0.00016438,2]
[333910973,1722624657552,-5036.39,0.00016438,2]
[333910974,1722624657561,-1267.35,0.00016438,2]
[333910975,1722624657571,-1273.83,0.00016438,2]
[333910976,1722624657581,-1810.08,0.00016438,2]
[333910977,1722624657590,-1681.77,0.00016438,2]
[333910978,1722624657599,-3948.58,0.00016438,2]
[333910979,1722624657608,-500.0,0.00016438,2]
[333910980,1722624657632,-1411.4,0.00016438,2]
[333910981,1722624657641,-1444.55,0.00016438,2]
[333910982,1722624657651,-2937.96,0.00016438,2]
[333910983,1722624657660,-5367.39,0.00016438,2]
[333910984,1722624657670,-1072.89,0.00016438,2]
[333910985,1722624657679,-1119.99,0.00016438,2]
[333910986,1722624657688,-8952.78,0.00016438,2]
[333910987,1722624657697,-2643.05,0.00016438,2]
[333910988,1722624657707,-5457.67,0.00016438,2]
[333910989,1722624657716,-890.29,0.00016438,2]
[333910990,1722624657725,-500.0,0.00016438,2]
[333910991,1722624657734,-2443.2,0.00016438,2]
[333910992,1722624657743,-500.0,0.00016438,2]
[333910993,1722624657752,-153.846154,0.00016438,2]
[333910994,1722624657762,-3489.15,0.00016438,2]
[333910995,1722624657772,-500.0,0.00016438,2]
[333910996,1722624657781,-368.117219,0.00016438,2]
[333910997,1722624657791,-368.117219,0.00016438,2]
[333910998,1722624657800,-368.117219,0.00016438,2]
[333910999,1722624657809,-368.117219,0.00016438,2]
[333911000,1722624657818,-368.117219,0.00016438,2]
[333911001,1722624657828,-368.117219,0.00016438,2]
[333911002,1722624657837,-368.117219,0.00016438,2]
[333911003,1722624657846,-368.117219,0.00016438,2]
[333911004,1722624657856,-368.117219,0.00016438,2]
[333911005,1722624657866,-368.117219,0.00016438,2]
[333911006,1722624657876,-368.117219,0.00016438,2]
[333911007,1722624657886,-368.117219,0.00016438,2]
[333911008,1722624657895,-368.117219,0.00016438,2]
[333911009,1722624657905,-368.117219,0.00016438,2]
[333911010,1722624657914,-368.117219,0.00016438,2]
[333911011,1722624657923,-368.117219,0.00016438,2]
[333911012,1722624657933,-368.117219,0.00016438,2]
[333911013,1722624657941,-368.117219,0.00016438,2]
[333911014,1722624657951,-368.117219,0.00016438,2]
[333911015,1722624657960,-368.117222,0.00016438,2]
[333911016,1722624657969,-32138.4401824,0.00016439,2]
[333911017,1722624657978,-38467.5622395,0.0001645,2]
[333911018,1722624657987,-9244.5496231,0.00016461,2]
[333911019,1722624657997,-332.90081657,0.00016473,2]
[333911020,1722624658006,-200.0,0.00016473,2]
[333911021,1722624658015,-200.0,0.00016473,2]
[333911022,1722624658024,-200.0,0.00016473,2]
[333911023,1722624658034,-167.0,0.00016702,2]
[333911024,1722624658043,-500.0,0.00016712,2]
[333911025,1722624658052,-500.0,0.00016712,2]
[333911026,1722624658062,-500.0,0.00016712,2]
[333911027,1722624658070,-500.0,0.00016712,2]
[333911028,1722624658079,-476.43685704,0.00016712,2]
[333911029,1722624658088,-500.0,0.00016712,2]
[333911030,1722624658097,-409.57593796,0.00016712,2]
[333911031,1722624658106,-500.0,0.00016712,2]
[333911032,1722624658115,-500.0,0.00016712,2]
[333911033,1722624658124,-500.0,0.00016712,2]
[333911034,1722624658133,-500.0,0.00016712,2]
[333911035,1722624658142,-500.0,0.00016712,2]
[333911036,1722624658151,-438.66716825,0.00016712,2]
[333911037,1722624658161,-500.29849298,0.00016712,2]
[333911038,1722624658169,-500.0,0.00016712,2]
[333911039,1722624658179,-589.186123,0.00016712,2]
[333911040,1722624658188,-500.0,0.00016712,2]
[333911041,1722624658197,-500.0,0.00016712,2]
[333911042,1722624658206,-500.0,0.00016712,2]
[333911043,1722624658216,-500.0,0.00016712,2]
[333911044,1722624658226,-500.0,0.00016712,2]
[333911045,1722624658235,-500.0,0.00016712,2]
[333911046,1722624658243,-500.0,0.00016712,2]
[333911047,1722624658253,-500.0,0.00016712,2]
[333911048,1722624658262,-300.0,0.00016712,2]
[333911049,1722624658271,-1973.27,0.00016712,2]
[333911050,1722624658279,-2916.72,0.00016712,2]
[333911051,1722624658289,-500.0,0.00016712,2]
[333911052,1722624658298,-500.0,0.00016712,2]
[333911053,1722624658307,-500.0,0.00016712,2]
[333911054,1722624658316,-1855.97,0.00016712,2]
[333911055,1722624658331,-934.15,0.00016712,2]
[333911056,1722624658341,-500.0,0.00016712,2]
[333911057,1722624658352,-1848.29,0.00016712,2]
[333911058,1722624658361,-500.0,0.00016712,2]
[333911059,1722624658371,-1132.39,0.00016712,2]
[333911060,1722624658380,-500.0,0.00016712,2]
[333911061,1722624658389,-500.0,0.00016712,2]
[333911062,1722624658399,-1554.64,0.00016712,2]
[333911063,1722624658408,-606.64338255,0.00016712,2]
[333911064,1722624658418,-2501.38,0.00016712,2]
[333911065,1722624658427,-565.11,0.00016712,2]
[333911066,1722624658437,-649.72,0.00016712,2]
[333911067,1722624658446,-500.0,0.00016712,2]
[333911068,1722624658456,-767.84,0.00016712,2]
[333911069,1722624658469,-860.84,0.00016712,2]
[333911070,1722624658478,-603.77,0.00016712,2]
[333911071,1722624658488,-535.21,0.00016712,2]
[333911072,1722624658498,-500.0,0.00016712,2]
[333911073,1722624658507,-1385.84,0.00016712,2]
[333911074,1722624658516,-500.0,0.00016712,2]
[333911075,1722624658526,-500.0,0.00016712,2]
[333911076,1722624658535,-500.0,0.00016712,2]
[333911077,1722624658544,-500.0,0.00016712,2]
[333911078,1722624658553,-412.10767634,0.00016712,2]
[333911079,1722624658562,-500.0,0.00016712,2]
[333911080,1722624658571,-839.56,0.00016712,2]
[333911081,1722624658580,-1169.01,0.00016712,2]
[333911082,1722624658589,-531.91,0.00016712,2]
[333911083,1722624658598,-1353.81,0.00016712,2]
[333911084,1722624658607,-675.93,0.00016712,2]
[333911085,1722624658616,-631.13,0.00016712,2]
[333911086,1722624658626,-500.0,0.00016712,2]
[333911087,1722624658635,-500.0,0.00016712,2]
[333911088,1722624658643,-1027.13,0.00016712,2]
[333911089,1722624658654,-500.0,0.00016712,2]
[333911090,1722624658663,-1006.69,0.00016712,2]
[333911091,1722624658672,-1013.71,0.00016712,2]
[333911092,1722624658681,-821.54,0.00016712,2]
[333911093,1722624658690,-500.0,0.00016712,2]
[333911094,1722624658699,-631.82,0.00016712,2]
[333911095,1722624658708,-500.0,0.00016712,2]
[333911096,1722624658717,-500.0,0.00016712,2]
[333911097,1722624658726,-500.0,0.00016712,2]
[333911098,1722624658735,-500.0,0.00016712,2]
[333911099,1722624658744,-1059.61,0.00016712,2]
[333911100,1722624658753,-500.0,0.00016712,2]
[333911101,1722624658763,-779.54,0.00016712,2]
[333911102,1722624658772,-1234.31,0.00016712,2]
[333911103,1722624658781,-597.19,0.00016712,2]
[333911104,1722624658790,-806.72,0.00016712,2]
[333911105,1722624658800,-500.0,0.00016712,2]
[333911106,1722624658809,-848.08,0.00016712,2]
[333911107,1722624658818,-531.59,0.00016712,2]
[333911108,1722624658827,-500.0,0.00016712,2]
[333911109,1722624658836,-964.46,0.00016712,2]
[333911110,1722624658845,-1307.64790373,0.00016712,2]
[333911111,1722624658855,-1434.92,0.00016712,2]
[333911112,1722624658877,-500.0,0.00016712,2]
[333911113,1722624658887,-631.08,0.00016712,2]
[333911114,1722624658897,-500.0,0.00016712,2]
[333911115,1722624658906,-1198.72,0.00016712,2]
[333911116,1722624658915,-1666.93,0.00016712,2]
[333911117,1722624658924,-500.0,0.00016712,2]
[333911118,1722624658934,-500.0,0.00016712,2]
[333911119,1722624658943,-591.83,0.00016712,2]
[333911120,1722624658952,-433.40924755,0.00016712,2]
[333911121,1722624658961,-556.13,0.00016712,2]
[333911122,1722624658970,-500.0,0.00016712,2]
[333911123,1722624658979,-2285.3,0.00016712,2]
[333911124,1722624658988,-2019.77,0.00016712,2]
[333911125,1722624658997,-723.04,0.00016712,2]
[333911126,1722624659006,-500.0,0.00016712,2]
[333911127,1722624659015,-500.0,0.00016712,2]
[333911128,1722624659024,-500.0,0.00016712,2]
[333911129,1722624659034,-500.0,0.00016712,2]
[333911130,1722624659043,-862.98,0.00016712,2]
[333911131,1722624659052,-500.0,0.00016712,2]
[333911132,1722624659061,-516.11820255,0.00016712,2]
[333911133,1722624659070,-1442.59,0.00016712,2]
[333911134,1722624659079,-500.0,0.00016712,2]
[333911135,1722624659089,-500.0,0.00016712,2]
[333911136,1722624659097,-500.0,0.00016712,2]
[333911137,1722624659106,-500.0,0.00016712,2]
[333911138,1722624659116,-1121.43,0.00016712,2]
[333911139,1722624659125,-662.47,0.00016712,2]
[333911140,1722624659134,-1041.55,0.00016712,2]
[333911141,1722624659143,-331.99427766,0.00016712,2]
[333911142,1722624659153,-1717.69,0.00016712,2]
[333911143,1722624659162,-558.79,0.00016712,2]
[333911144,1722624659172,-500.0,0.00016712,2]
[333911145,1722624659180,-500.0,0.00016712,2]
[333911146,1722624659190,-2560.19,0.00016712,2]
[333911147,1722624659199,-500.0,0.00016712,2]
[333911148,1722624659208,-953.13,0.00016712,2]
[333911149,1722624659217,-858.29,0.00016712,2]
[333911150,1722624659227,-536.46,0.00016712,2]
[333911151,1722624659237,-500.0,0.00016712,2]
[333911152,1722624659247,-2375.51,0.00016712,2]
[333911153,1722624659256,-500.0,0.00016712,2]
[333911154,1722624659265,-594.59,0.00016712,2]
[333911155,1722624659274,-500.0,0.00016712,2]
[333911156,1722624659283,-1229.45,0.00016712,2]
[333911157,1722624659292,-500.0,0.00016712,2]
[333911158,1722624659301,-500.0,0.00016712,2]
[333911159,1722624659311,-747.31,0.00016712,2]
[333911160,1722624659321,-1116.3,0.00016712,2]
[333911161,1722624659331,-663.92,0.00016712,2]
[333911162,1722624659346,-653.97,0.00016712,2]
[333911163,1722624659357,-500.0,0.00016712,2]
[333911164,1722624659384,-837.97,0.00016712,2]
[333911165,1722624659393,-500.0,0.00016712,2]
[333911166,1722624659403,-2437.42,0.00016712,2]
[333911167,1722624659412,-675.31,0.00016712,2]
[333911168,1722624659423,-666.13,0.00016712,2]
[333911169,1722624659432,-500.0,0.00016712,2]
[333911170,1722624659442,-1712.31,0.00016712,2]
[333911171,1722624659453,-500.0,0.00016712,2]
[333911172,1722624659463,-500.0,0.00016712,2]
[333911173,1722624659473,-500.0,0.00016712,2]
[333911174,1722624659482,-1690.13,0.00016712,2]
[333911175,1722624659491,-500.0,0.00016712,2]
[333911176,1722624659500,-500.0,0.00016712,2]
[333911177,1722624659510,-737.16,0.00016712,2]
[333911178,1722624659519,-500.0,0.00016712,2]
[333911179,1722624659528,-269.74,0.00016712,2]
[333911180,1722624659537,-500.0,0.00016712,2]
[333911181,1722624659547,-500.0,0.00016712,2]
[333911182,1722624659556,-988.5,0.00016712,2]
[333911183,1722624659565,-500.0,0.00016712,2]
[333911184,1722624659574,-614.53,0.00016712,2]
[333911185,1722624659583,-500.0,0.00016712,2]
[333911186,1722624659592,-1942.68,0.00016712,2]
[333911187,1722624659601,-625.0,0.00016712,2]
[333911188,1722624659610,-1613.67,0.00016712,2]
[333911189,1722624659619,-500.0,0.00016712,2]
[333911190,1722624659628,-1037.01,0.00016712,2]
[333911191,1722624659638,-500.0,0.00016712,2]
[333911192,1722624659647,-500.0,0.00016712,2]
[333911193,1722624659657,-583.23,0.00016712,2]
[333911194,1722624659667,-500.0,0.00016712,2]
[333911195,1722624659677,-500.0,0.00016712,2]
[333911196,1722624659688,-731.57,0.00016712,2]
[333911197,1722624659697,-500.0,0.00016712,2]
[333911198,1722624659707,-913.35,0.00016712,2]
[333911199,1722624659716,-500.0,0.00016712,2]
[333911200,1722624659725,-500.0,0.00016712,2]
[333911201,1722624659736,-500.0,0.00016712,2]
[333911202,1722624659745,-549.48,0.00016712,2]
[333911203,1722624659755,-1465.92,0.00016712,2]
[333911204,1722624659766,-1620.76,0.00016712,2]
[333911205,1722624659776,-500.0,0.00016712,2]
[333911206,1722624659785,-500.0,0.00016712,2]
[333911207,1722624659795,-500.0,0.00016712,2]
[333911208,1722624659804,-652.31,0.00016712,2]
[333911209,1722624659814,-500.0,0.00016712,2]
[333911210,1722624659823,-500.0,0.00016712,2]
[333911211,1722624659832,-552.25,0.00016712,2]
[333911212,1722624659842,-500.0,0.00016712,2]
[333911213,1722624659853,-1213.88,0.00016712,2]
[333911214,1722624659877,-500.0,0.00016712,2]
[333911215,1722624659886,-500.0,0.00016712,2]
[333911216,1722624659896,-369.88721731,0.00016712,2]
[333911217,1722624659905,-527.42,0.00016712,2]
[333911218,1722624659914,-400.0,0.00016712,2]
[333911219,1722624659924,-1287.73,0.00016712,2]
[333911220,1722624659933,-2322.9,0.00016712,2]
[333911221,1722624659943,-1429.67,0.00016712,2]
[333911222,1722624659953,-150.0,0.00016712,2]
[333911223,1722624659962,-772.62,0.00016712,2]
[333911224,1722624659972,-1651.62,0.00016712,2]
[333911225,1722624659981,-720.98,0.00016712,2]
[333911226,1722624659989,-500.0,0.00016712,2]
[333911227,1722624659999,-1094.54,0.00016712,2]
[333911228,1722624660008,-734.38,0.00016712,2]
[333911229,1722624660018,-500.0,0.00016712,2]
[333911230,1722624660027,-500.0,0.00016712,2]
[333911231,1722624660038,-500.0,0.00016712,2]
[333911232,1722624660047,-669.03,0.00016712,2]
[333911233,1722624660056,-947.35,0.00016712,2]
[333911234,1722624660066,-500.0,0.00016712,2]
[333911235,1722624660075,-500.0,0.00016712,2]
[333911236,1722624660084,-500.0,0.00016712,2]
[333911237,1722624660094,-506.37,0.00016712,2]
[333911238,1722624660103,-1368.34,0.00016712,2]
[333911239,1722624660112,-762.5,0.00016712,2]
[333911240,1722624660122,-597.7,0.00016712,2]
[333911241,1722624660132,-752.81,0.00016712,2]
[333911242,1722624660141,-500.0,0.00016712,2]
[333911243,1722624660151,-500.0,0.00016712,2]
[333911244,1722624660160,-964.95,0.00016712,2]
[333911245,1722624660169,-1620.61,0.00016712,2]
[333911246,1722624660179,-737.74,0.00016712,2]
[333911247,1722624660188,-547.74,0.00016712,2]
[333911248,1722624660197,-1068.16,0.00016712,2]
[333911249,1722624660207,-1171.23,0.00016712,2]
[333911250,1722624660216,-500.0,0.00016712,2]
[333911251,1722624660225,-500.0,0.00016712,2]
[333911252,1722624660234,-500.0,0.00016712,2]
[333911253,1722624660244,-500.0,0.00016712,2]
[333911254,1722624660253,-1110.18,0.00016712,2]
[333911255,1722624660263,-3303.41,0.00016712,2]
[333911256,1722624660272,-500.0,0.00016712,2]
[333911257,1722624660282,-500.0,0.00016712,2]
[333911258,1722624660292,-500.0,0.00016712,2]
[333911259,1722624660302,-1891.87,0.00016712,2]
[333911260,1722624660311,-500.0,0.00016712,2]
[333911261,1722624660321,-1695.39,0.00016712,2]
[333911262,1722624660331,-500.0,0.00016712,2]
[333911263,1722624660343,-500.0,0.00016712,2]
[333911264,1722624660354,-1217.33,0.00016712,2]
[333911265,1722624660363,-2810.72,0.00016712,2]
[333911266,1722624660391,-500.0,0.00016712,2]
[333911267,1722624660399,-970.49,0.00016712,2]
[333911268,1722624660408,-500.0,0.00016712,2]
[333911269,1722624660418,-1170.88,0.00016712,2]
[333911270,1722624660427,-500.0,0.00016712,2]
[333911271,1722624660436,-2628.9,0.00016712,2]
[333911272,1722624660447,-500.0,0.00016712,2]
[333911273,1722624660456,-500.0,0.00016712,2]
[333911274,1722624660465,-500.0,0.00016712,2]
[333911275,1722624660474,-1111.66,0.00016712,2]
[333911276,1722624660484,-1156.95,0.00016712,2]
[333911277,1722624660493,-500.0,0.00016712,2]
[333911278,1722624660503,-500.0,0.00016712,2]
[333911279,1722624660512,-500.0,0.00016712,2]
[333911280,1722624660521,-1967.33,0.00016712,2]
[333911281,1722624660530,-500.0,0.00016712,2]
[333911282,1722624660539,-500.0,0.00016712,2]
[333911283,1722624660549,-500.0,0.00016712,2]
[333911284,1722624660558,-726.61,0.00016712,2]
[333911285,1722624660567,-1809.6,0.00016712,2]
[333911286,1722624660577,-592.49,0.00016712,2]
[333911287,1722624660586,-500.0,0.00016712,2]
[333911288,1722624660595,-1349.49,0.00016712,2]
[333911289,1722624660605,-500.0,0.00016712,2]
[333911290,1722624660614,-500.0,0.00016712,2]
[333911291,1722624660623,-500.0,0.00016712,2]
[333911292,1722624660633,-982.35,0.00016712,2]
[333911293,1722624660642,-2035.0,0.00016712,2]
[333911294,1722624660651,-568.25,0.00016712,2]
[333911295,1722624660660,-877.71,0.00016712,2]
[333911296,1722624660670,-1096.33,0.00016712,2]
[333911297,1722624660679,-500.0,0.00016712,2]
[333911298,1722624660689,-500.0,0.00016712,2]
[333911299,1722624660698,-500.0,0.00016712,2]
[333911300,1722624660708,-500.0,0.00016712,2]
[333911301,1722624660717,-500.0,0.00016712,2]
[333911302,1722624660726,-1083.34,0.00016712,2]
[333911303,1722624660736,-500.0,0.00016712,2]
[333911304,1722624660745,-2150.28,0.00016712,2]
[333911305,1722624660754,-1000.0,0.00016712,2]
[333911306,1722624660764,-2400.39,0.00016712,2]
[333911307,1722624660773,-813.93,0.00016712,2]
[333911308,1722624660783,-2226.95,0.00016712,2]
[333911309,1722624660792,-694.27,0.00016712,2]
[333911310,1722624660802,-623.62,0.00016712,2]
[333911311,1722624660811,-500.0,0.00016712,2]
[333911312,1722624660821,-500.0,0.00016712,2]
[333911313,1722624660830,-500.0,0.00016712,2]
[333911314,1722624660840,-1555.06,0.00016712,2]
[333911315,1722624660850,-500.0,0.00016712,2]
[333911316,1722624660860,-607.84,0.00016712,2]
[333911317,1722624660885,-500.0,0.00016712,2]
[333911318,1722624660894,-897.49,0.00016712,2]
[333911319,1722624660904,-500.0,0.00016712,2]
[333911320,1722624660914,-583.95316512,0.00016712,2]
[333911321,1722624660923,-1038.98,0.00016712,2]
[333911322,1722624660932,-2075.72,0.00016712,2]
[333911323,1722624660942,-1287.73,0.00016712,2]
[333911324,1722624660951,-4314.47,0.00016712,2]
[333911325,1722624660961,-1022.28,0.00016712,2]
[333911326,1722624660971,-500.0,0.00016712,2]
[333911327,1722624660980,-1662.34,0.00016712,2]
[333911328,1722624660990,-768.56,0.00016712,2]
[333911329,1722624660999,-1358.58,0.00016712,2]
[333911330,1722624661009,-1586.26,0.00016712,2]
[333911331,1722624661018,-206.18428214,0.00016712,2]
[333911332,1722624661028,-2337.4,0.00016712,2]
[333911333,1722624661037,-500.0,0.00016712,2]
[333911334,1722624661047,-500.0,0.00016712,2]
[333911335,1722624661056,-500.0,0.00016712,2]
[333911336,1722624661066,-500.0,0.00016712,2]
[333911337,1722624661075,-1506.11,0.00016712,2]
[333911338,1722624661084,-500.0,0.00016712,2]
[333911339,1722624661093,-500.0,0.00016712,2]
[333911340,1722624661102,-604.79,0.00016712,2]
[333911341,1722624661112,-2550.07,0.00016712,2]
[333911342,1722624661122,-502.43,0.00016712,2]
[333911343,1722624661131,-1654.36,0.00016712,2]
[333911344,1722624661139,-785.8,0.00016712,2]